[Event "Titled Tuesday Blitz April 4 Early 2023"]
[White "Weetik, Vjacheslav"]
[Black "Krsnik Cohar, Ivan Vihor"]
[WhiteFideId "4153472"]
[BlackFideId "14520044"]
[WhiteElo "2469"]
[BlackElo "2414"]
[Result "1/2-1/2"]
[Round "07"]
[TimeControl "180+2"]
[Date "2023.04.04"]
[WhiteClock "0:00:11"]
[BlackClock "0:00:07"]

1. d4 {[%clk 0:02:58]}  Nf6 {[%clk 0:03:00]} 2. c4 {[%clk 0:02:58]}  e6 {[%clk 0:03:00]} 3. g3 {[%clk 0:02:58]}  Bb4+ {[%clk 0:03:01]} 4. Bd2 {[%clk 0:02:58]}  Qe7 {[%clk 0:03:01]} 5. Nf3 {[%clk 0:02:57]}  Nc6 {[%clk 0:03:01]} 6. Nc3 {[%clk 0:02:53]}  O-O {[%clk 0:03:01]} 7. Bg2 {[%clk 0:02:49]}  d5 {[%clk 0:02:59]} 8. cxd5 {[%clk 0:02:43]}  exd5 {[%clk 0:02:58]} 9. O-O {[%clk 0:02:43]}  Ne4 {[%clk 0:02:47]} 10. Nxd5 {[%clk 0:02:38]}  Qd6 {[%clk 0:02:43]} 11. Nxb4 {[%clk 0:02:22]}  Nxb4 {[%clk 0:02:44]} 12. Bf4 {[%clk 0:02:20]}  Qb6 {[%clk 0:02:40]} 13. Ne5 {[%clk 0:02:15]}  Nf6 {[%clk 0:02:36]} 14. a3 {[%clk 0:01:49]}  Nbd5 {[%clk 0:02:31]} 15. Bc1 {[%clk 0:01:49]}  Rd8 {[%clk 0:02:27]} 16. e4 {[%clk 0:01:32]}  Ne7 {[%clk 0:02:22]} 17. Be3 {[%clk 0:01:27]}  Qxb2 {[%clk 0:02:02]} 18. Qc1 {[%clk 0:01:18]}  Qxc1 {[%clk 0:01:56]} 19. Rfxc1 {[%clk 0:01:19]}  c6 {[%clk 0:01:57]} 20. f3 {[%clk 0:01:14]}  h6 {[%clk 0:01:55]} 21. Rab1 {[%clk 0:01:10]}  Nd7 {[%clk 0:01:53]} 22. Nc4 {[%clk 0:01:08]}  Nb6 {[%clk 0:01:42]} 23. Na5 {[%clk 0:00:57]}  f5 {[%clk 0:01:18]} 24. h3 {[%clk 0:00:43]}  g5 {[%clk 0:01:17]} 25. Bf1 {[%clk 0:00:40]}  Kg7 {[%clk 0:01:15]} 26. Kh2 {[%clk 0:00:22]}  Re8 {[%clk 0:01:06]} 27. Bd3 {[%clk 0:00:20]}  Ned5 {[%clk 0:00:49]} 28. Bd2 {[%clk 0:00:18]}  fxe4 {[%clk 0:00:44]} 29. fxe4 {[%clk 0:00:19]}  Nf6 {[%clk 0:00:44]} 30. Re1 {[%clk 0:00:17]}  Re7 {[%clk 0:00:36]} 31. Bc3 {[%clk 0:00:18]}  Be6 {[%clk 0:00:20]} 32. d5 {[%clk 0:00:18]}  cxd5 {[%clk 0:00:20]} 33. Rf1 {[%clk 0:00:18]}  Rf8 {[%clk 0:00:18]} 34. Rxf6 {[%clk 0:00:07]}  Rxf6 {[%clk 0:00:18]} 35. Rf1 {[%clk 0:00:08]}  Nd7 {[%clk 0:00:16]} 36. Nxb7 {[%clk 0:00:05]}  dxe4 {[%clk 0:00:16]} 37. Bxe4 {[%clk 0:00:05]}  Bc4 {[%clk 0:00:16]} 38. Re1 {[%clk 0:00:03]}  Kf8 {[%clk 0:00:15]} 39. Bxf6 {[%clk 0:00:04]}  Nxf6 {[%clk 0:00:16]} 40. Nd6 {[%clk 0:00:04]}  Bd5 {[%clk 0:00:15]} 41. Rf1 {[%clk 0:00:03]}  Bxe4 {[%clk 0:00:13]} 42. Rxf6+ {[%clk 0:00:04]}  Kg7 {[%clk 0:00:14]} 43. Nxe4 {[%clk 0:00:03]}  Rxe4 {[%clk 0:00:13]} 44. Ra6 {[%clk 0:00:04]}  Re2+ {[%clk 0:00:13]} 45. Kg1 {[%clk 0:00:04]}  Re7 {[%clk 0:00:14]} 46. Kf2 {[%clk 0:00:05]}  Rb7 {[%clk 0:00:14]} 47. Kf3 {[%clk 0:00:05]}  h5 {[%clk 0:00:13]} 48. h4 {[%clk 0:00:05]}  gxh4 {[%clk 0:00:09]} 49. gxh4 {[%clk 0:00:05]}  Rf7+ {[%clk 0:00:08]} 50. Kg3 {[%clk 0:00:05]}  Kh7 {[%clk 0:00:07]} 51. a4 {[%clk 0:00:06]}  Kg7 {[%clk 0:00:06]} 52. Ra5 {[%clk 0:00:06]}  Kh6 {[%clk 0:00:05]} 53. Rd5 {[%clk 0:00:05]}  Rb7 {[%clk 0:00:03]} 54. Rd6+ {[%clk 0:00:05]}  Kg7 {[%clk 0:00:03]} 55. Ra6 {[%clk 0:00:06]}  Rf7 {[%clk 0:00:01]} 56. a5 {[%clk 0:00:06]}  Kh7 {[%clk 0:00:02]} 57. Rc6 {[%clk 0:00:06]}  Kg7 {[%clk 0:00:02]} 58. a6 {[%clk 0:00:07]}  Rd7 {[%clk 0:00:02]} 59. Rc8 {[%clk 0:00:07]}  Rd4 {[%clk 0:00:01]} 60. Rc7+ {[%clk 0:00:07]}  Kg6 {[%clk 0:00:02]} 61. Rxa7 {[%clk 0:00:07]}  Rg4+ {[%clk 0:00:02]} 62. Kh3 {[%clk 0:00:08]}  Ra4 {[%clk 0:00:03]} 63. Ra8 {[%clk 0:00:08]}  Kg7 {[%clk 0:00:04]} 64. Kg3 {[%clk 0:00:08]}  Kh7 {[%clk 0:00:04]} 65. Kf3 {[%clk 0:00:07]}  Kg7 {[%clk 0:00:05]} 66. Ke3 {[%clk 0:00:07]}  Rxh4 {[%clk 0:00:03]} 67. Rb8 {[%clk 0:00:07]}  Ra4 {[%clk 0:00:03]} 68. Rb7+ {[%clk 0:00:08]}  Kg6 {[%clk 0:00:04]} 69. a7 {[%clk 0:00:08]}  h4 {[%clk 0:00:03]} 70. Kf3 {[%clk 0:00:09]}  Kg5 {[%clk 0:00:02]} 71. Rb5+ {[%clk 0:00:09]}  Kg6 {[%clk 0:00:02]} 72. Rb7 {[%clk 0:00:09]}  Kg5 {[%clk 0:00:03]} 73. Kf2 {[%clk 0:00:10]}  Kg4 {[%clk 0:00:03]} 74. Rg7+ {[%clk 0:00:09]}  Kf5 {[%clk 0:00:04]} 75. Kg2 {[%clk 0:00:10]}  Ra3 {[%clk 0:00:03]} 76. Kf2 {[%clk 0:00:10]}  Kf4 {[%clk 0:00:03]} 77. Rf7+ {[%clk 0:00:10]}  Kg4 {[%clk 0:00:03]} 78. Ke2 {[%clk 0:00:09]}  h3 {[%clk 0:00:03]} 79. Rg7+ {[%clk 0:00:10]}  Kf4 {[%clk 0:00:03]} 80. Rh7 {[%clk 0:00:10]}  Kg3 {[%clk 0:00:04]} 81. Rg7+ {[%clk 0:00:10]}  Kh2 {[%clk 0:00:03]} 82. Kd2 {[%clk 0:00:09]}  Kh1 {[%clk 0:00:03]} 83. Kc2 {[%clk 0:00:09]}  h2 {[%clk 0:00:03]} 84. Kb2 {[%clk 0:00:09]}  Rxa7 {[%clk 0:00:03]} 85. Rxa7 {[%clk 0:00:09]}  Kg2 {[%clk 0:00:04]} 86. Rg7+ {[%clk 0:00:10]}  Kf2 {[%clk 0:00:04]} 87. Rh7 {[%clk 0:00:10]}  Kg2 {[%clk 0:00:05]} 88. Rg7+ {[%clk 0:00:09]}  Kf2 {[%clk 0:00:06]} 89. Rh7 {[%clk 0:00:10]}  Kg2 {[%clk 0:00:06]} 90. Rxh2+ {[%clk 0:00:11]}  Kxh2 {[%clk 0:00:07]} 1/2-1/2


[Site "https://www.chess.com"]

[Event "Titled Tuesday Blitz April 4 Early 2023"]
[White "Tokman, Ariel"]
[Black "Krysa, Leandro"]
[WhiteFideId "117420"]
[BlackFideId "116807"]
[WhiteElo "2263"]
[BlackElo "2489"]
[Result "1/2-1/2"]
[Round "07"]
[TimeControl "180+2"]
[Date "2023.04.04"]
[WhiteClock "0:00:12"]
[BlackClock "0:00:07"]

1. e4 {[%clk 0:02:56]}  c5 {[%clk 0:02:58]} 2. Nf3 {[%clk 0:02:55]}  Nc6 {[%clk 0:02:58]} 3. Bb5 {[%clk 0:02:55]}  g6 {[%clk 0:02:57]} 4. O-O {[%clk 0:02:54]}  Bg7 {[%clk 0:02:57]} 5. Re1 {[%clk 0:02:54]}  e5 {[%clk 0:02:57]} 6. d3 {[%clk 0:02:54]}  Nge7 {[%clk 0:02:56]} 7. a4 {[%clk 0:02:53]}  O-O {[%clk 0:02:55]} 8. Nc3 {[%clk 0:02:53]}  d6 {[%clk 0:02:54]} 9. Bc4 {[%clk 0:02:22]}  h6 {[%clk 0:02:53]} 10. Nd5 {[%clk 0:02:14]}  Rb8 {[%clk 0:02:42]} 11. Nd2 {[%clk 0:02:11]}  Kh7 {[%clk 0:02:32]} 12. Nf1 {[%clk 0:02:02]}  Nxd5 {[%clk 0:02:20]} 13. Bxd5 {[%clk 0:02:01]}  Ne7 {[%clk 0:02:17]} 14. Bc4 {[%clk 0:02:01]}  d5 {[%clk 0:02:12]} 15. exd5 {[%clk 0:01:55]}  Nxd5 {[%clk 0:02:13]} 16. Qf3 {[%clk 0:01:53]}  Be6 {[%clk 0:02:00]} 17. a5 {[%clk 0:01:42]}  Qd7 {[%clk 0:01:48]} 18. Ne3 {[%clk 0:01:39]}  Nb4 {[%clk 0:01:32]} 19. Qe2 {[%clk 0:01:21]}  Rbd8 {[%clk 0:01:25]} 20. Bd2 {[%clk 0:01:17]}  Bxc4 {[%clk 0:01:09]} 21. Bxb4 {[%clk 0:01:12]}  Bxd3 {[%clk 0:01:10]} 22. cxd3 {[%clk 0:00:49]}  cxb4 {[%clk 0:01:09]} 23. Red1 {[%clk 0:00:43]}  Rfe8 {[%clk 0:00:58]} 24. Nc4 {[%clk 0:00:43]}  f5 {[%clk 0:00:55]} 25. Rac1 {[%clk 0:00:40]}  Qf7 {[%clk 0:00:48]} 26. Qf3 {[%clk 0:00:36]}  Rd7 {[%clk 0:00:34]} 27. b3 {[%clk 0:00:31]}  Red8 {[%clk 0:00:31]} 28. h3 {[%clk 0:00:29]}  Qd5 {[%clk 0:00:30]} 29. Qe2 {[%clk 0:00:25]}  h5 {[%clk 0:00:25]} 30. a6 {[%clk 0:00:18]}  bxa6 {[%clk 0:00:23]} 31. Ra1 {[%clk 0:00:14]}  Qe6 {[%clk 0:00:20]} 32. Ra4 {[%clk 0:00:08]}  e4 {[%clk 0:00:19]} 33. Rxb4 {[%clk 0:00:07]}  Rxd3 {[%clk 0:00:19]} 34. Rxd3 {[%clk 0:00:07]}  Rxd3 {[%clk 0:00:19]} 35. Rb7 {[%clk 0:00:07]}  Qd5 {[%clk 0:00:12]} 36. Rxa7 {[%clk 0:00:03]}  f4 {[%clk 0:00:12]} 37. g3 {[%clk 0:00:02]}  Rd1+ {[%clk 0:00:09]} 38. Kh2 {[%clk 0:00:02]}  e3 {[%clk 0:00:08]} 39. f3 {[%clk 0:00:02]}  Qd3 {[%clk 0:00:04]} 40. Qxd3 {[%clk 0:00:02]}  Rxd3 {[%clk 0:00:05]} 41. gxf4 {[%clk 0:00:03]}  e2 {[%clk 0:00:04]} 42. Re7 {[%clk 0:00:04]}  Rxf3 {[%clk 0:00:05]} 43. Rxe2 {[%clk 0:00:03]}  Rxb3 {[%clk 0:00:05]} 44. Nd6 {[%clk 0:00:03]}  Kh6 {[%clk 0:00:05]} 45. Re7 {[%clk 0:00:03]}  Bf6 {[%clk 0:00:04]} 46. Nf7+ {[%clk 0:00:02]}  Kg7 {[%clk 0:00:04]} 47. Rd7 {[%clk 0:00:03]}  Kf8 {[%clk 0:00:04]} 48. Ne5 {[%clk 0:00:02]}  Bxe5 {[%clk 0:00:04]} 49. fxe5 {[%clk 0:00:03]}  Re3 {[%clk 0:00:04]} 50. Rd6 {[%clk 0:00:03]}  Kf7 {[%clk 0:00:04]} 51. Rxa6 {[%clk 0:00:03]}  Rxe5 {[%clk 0:00:04]} 52. Kg3 {[%clk 0:00:04]}  Re6 {[%clk 0:00:05]} 53. Ra7+ {[%clk 0:00:04]}  Kf6 {[%clk 0:00:05]} 54. Ra5 {[%clk 0:00:04]}  g5 {[%clk 0:00:05]} 55. Ra7 {[%clk 0:00:04]}  Re3+ {[%clk 0:00:04]} 56. Kg2 {[%clk 0:00:03]}  Rd3 {[%clk 0:00:04]} 57. Ra6+ {[%clk 0:00:04]}  Kf5 {[%clk 0:00:04]} 58. Ra5+ {[%clk 0:00:04]}  Kf4 {[%clk 0:00:03]} 59. Ra4+ {[%clk 0:00:05]}  Ke5 {[%clk 0:00:04]} 60. Ra5+ {[%clk 0:00:05]}  Rd5 {[%clk 0:00:04]} 61. Ra8 {[%clk 0:00:06]}  Ke4 {[%clk 0:00:04]} 62. Re8+ {[%clk 0:00:06]}  Re5 {[%clk 0:00:05]} 63. Rh8 {[%clk 0:00:06]}  h4 {[%clk 0:00:03]} 64. Rf8 {[%clk 0:00:06]}  Ke3 {[%clk 0:00:03]} 65. Rf6 {[%clk 0:00:06]}  Kd2 {[%clk 0:00:03]} 66. Rg6 {[%clk 0:00:06]}  Ke2 {[%clk 0:00:02]} 67. Rf6 {[%clk 0:00:06]}  Re4 {[%clk 0:00:02]} 68. Rg6 {[%clk 0:00:05]}  Re5 {[%clk 0:00:03]} 69. Rf6 {[%clk 0:00:06]}  Ke3 {[%clk 0:00:03]} 70. Rg6 {[%clk 0:00:06]}  Ke4 {[%clk 0:00:04]} 71. Rg8 {[%clk 0:00:06]}  Ra5 {[%clk 0:00:03]} 72. Re8+ {[%clk 0:00:05]}  Re5 {[%clk 0:00:04]} 73. Rg8 {[%clk 0:00:06]}  Kf4 {[%clk 0:00:04]} 74. Rf8+ {[%clk 0:00:06]}  Rf5 {[%clk 0:00:04]} 75. Ra8 {[%clk 0:00:06]}  Re5 {[%clk 0:00:04]} 76. Rf8+ {[%clk 0:00:05]}  Ke3 {[%clk 0:00:04]} 77. Rg8 {[%clk 0:00:05]}  Rd5 {[%clk 0:00:05]} 78. Re8+ {[%clk 0:00:05]}  Kd3 {[%clk 0:00:05]} 79. Rg8 {[%clk 0:00:05]}  Rc5 {[%clk 0:00:05]} 80. Kf3 {[%clk 0:00:05]}  Re5 {[%clk 0:00:01]} 81. Kg4 {[%clk 0:00:05]}  Ke4 {[%clk 0:00:01]} 82. Rxg5 {[%clk 0:00:05]}  Rxg5+ {[%clk 0:00:01]} 83. Kxg5 {[%clk 0:00:06]}  Ke5 {[%clk 0:00:02]} 84. Kxh4 {[%clk 0:00:06]}  Kf6 {[%clk 0:00:02]} 85. Kh5 {[%clk 0:00:07]}  Kg7 {[%clk 0:00:03]} 86. h4 {[%clk 0:00:08]}  Kh8 {[%clk 0:00:04]} 87. Kg4 {[%clk 0:00:09]}  Kg8 {[%clk 0:00:05]} 88. h5 {[%clk 0:00:10]}  Kh8 {[%clk 0:00:05]} 89. h6 {[%clk 0:00:11]}  Kg8 {[%clk 0:00:06]} 90. h7+ {[%clk 0:00:12]}  Kh8 {[%clk 0:00:07]} 91. Kg5 {[%clk 0:00:12]}  Kxh7 {[%clk 0:00:07]} 1/2-1/2


[Site "https://www.chess.com"]

[Event "Titled Tuesday Blitz April 4 Early 2023"]
[White "Shapiro, Viktor"]
[Black "Prohaszka, Peter"]
[WhiteFideId "4175700"]
[BlackFideId "726265"]
[WhiteElo "2152"]
[BlackElo "2626"]
[Result "0-1"]
[Round "07"]
[TimeControl "180+2"]
[Date "2023.04.04"]
[WhiteClock "0:00:11"]
[BlackClock "0:00:06"]

1. Nf3 {[%clk 0:02:53]}  d5 {[%clk 0:02:58]} 2. c3 {[%clk 0:02:51]}  g6 {[%clk 0:02:45]} 3. d4 {[%clk 0:02:51]}  Bg7 {[%clk 0:02:45]} 4. Bf4 {[%clk 0:02:51]}  Nh6 {[%clk 0:02:46]} 5. h3 {[%clk 0:02:49]}  Nf5 {[%clk 0:02:41]} 6. Nbd2 {[%clk 0:02:49]}  Nd7 {[%clk 0:02:36]} 7. e3 {[%clk 0:02:49]}  b6 {[%clk 0:02:33]} 8. a4 {[%clk 0:02:45]}  a5 {[%clk 0:02:32]} 9. Bd3 {[%clk 0:02:40]}  Ba6 {[%clk 0:02:30]} 10. Bxa6 {[%clk 0:02:37]}  Rxa6 {[%clk 0:02:31]} 11. Qe2 {[%clk 0:02:37]}  Ra8 {[%clk 0:02:30]} 12. O-O {[%clk 0:02:37]}  O-O {[%clk 0:02:28]} 13. e4 {[%clk 0:02:33]}  dxe4 {[%clk 0:02:29]} 14. Nxe4 {[%clk 0:02:34]}  Re8 {[%clk 0:02:27]} 15. Rfd1 {[%clk 0:02:33]}  Nd6 {[%clk 0:02:18]} 16. Bh2 {[%clk 0:02:24]}  Nxe4 {[%clk 0:02:11]} 17. Qxe4 {[%clk 0:02:24]}  Nf6 {[%clk 0:02:11]} 18. Qc6 {[%clk 0:02:22]}  Rc8 {[%clk 0:02:10]} 19. Ne5 {[%clk 0:02:12]}  Qd6 {[%clk 0:02:04]} 20. b4 {[%clk 0:02:07]}  Nd5 {[%clk 0:02:01]} 21. Qc4 {[%clk 0:01:57]}  Qe6 {[%clk 0:01:36]} 22. Re1 {[%clk 0:01:42]}  c6 {[%clk 0:00:53]} 23. bxa5 {[%clk 0:01:35]}  bxa5 {[%clk 0:00:54]} 24. Rab1 {[%clk 0:01:31]}  Bxe5 {[%clk 0:00:42]} 25. Bxe5 {[%clk 0:01:27]}  Qd7 {[%clk 0:00:30]} 26. Qc5 {[%clk 0:01:24]}  Ra8 {[%clk 0:00:23]} 27. Rb3 {[%clk 0:01:21]}  Rec8 {[%clk 0:00:21]} 28. Reb1 {[%clk 0:01:21]}  f6 {[%clk 0:00:20]} 29. Rb7 {[%clk 0:01:19]}  Qf5 {[%clk 0:00:17]} 30. Bg3 {[%clk 0:01:16]}  h5 {[%clk 0:00:05]} 31. Re1 {[%clk 0:00:42]}  Re8 {[%clk 0:00:05]} 32. c4 {[%clk 0:00:34]}  Nc3 {[%clk 0:00:06]} 33. Qxf5 {[%clk 0:00:33]}  gxf5 {[%clk 0:00:06]} 34. Rexe7 {[%clk 0:00:33]}  Rxe7 {[%clk 0:00:07]} 35. Rxe7 {[%clk 0:00:33]}  Nxa4 {[%clk 0:00:08]} 36. Bc7 {[%clk 0:00:27]}  Nc3 {[%clk 0:00:04]} 37. Re3 {[%clk 0:00:25]}  Nd1 {[%clk 0:00:03]} 38. Re6 {[%clk 0:00:20]}  a4 {[%clk 0:00:03]} 39. Re1 {[%clk 0:00:20]}  Nb2 {[%clk 0:00:02]} 40. d5 {[%clk 0:00:19]}  Nxc4 {[%clk 0:00:02]} 41. dxc6 {[%clk 0:00:19]}  Ne5 {[%clk 0:00:01]} 42. Bxe5 {[%clk 0:00:17]}  fxe5 {[%clk 0:00:02]} 43. Rxe5 {[%clk 0:00:17]}  a3 {[%clk 0:00:03]} 44. c7 {[%clk 0:00:15]}  a2 {[%clk 0:00:03]} 45. Ra5 {[%clk 0:00:10]}  a1=Q+ {[%clk 0:00:03]} 46. Rxa1 {[%clk 0:00:10]}  Rxa1+ {[%clk 0:00:04]} 47. Kh2 {[%clk 0:00:11]}  Rc1 {[%clk 0:00:05]} 48. Kg3 {[%clk 0:00:11]}  Rxc7 {[%clk 0:00:05]} 49. Kf4 {[%clk 0:00:12]}  Rc5 {[%clk 0:00:06]} 50. Kg5 {[%clk 0:00:12]}  Rc2 {[%clk 0:00:06]} 51. g4 {[%clk 0:00:10]}  fxg4 {[%clk 0:00:06]} 52. hxg4 {[%clk 0:00:11]}  hxg4 {[%clk 0:00:07]} 53. Kxg4 {[%clk 0:00:11]}  Rxf2 {[%clk 0:00:06]} 0-1


[Site "https://www.chess.com"]

[Event "Titled Tuesday Blitz April 4 Early 2023"]
[White "Terletsky, Oleg"]
[Black "Vlassov, Nikolai"]
[WhiteFideId "14116774"]
[BlackFideId "4103360"]
[WhiteElo "2084"]
[BlackElo "2324"]
[Result "1-0"]
[Round "07"]
[TimeControl "180+2"]
[Date "2023.04.04"]
[WhiteClock "0:00:02"]
[BlackClock "0:00:06"]

1. e4 {[%clk 0:03:00]}  c5 {[%clk 0:02:59]} 2. Nf3 {[%clk 0:03:00]}  d6 {[%clk 0:02:59]} 3. d4 {[%clk 0:03:00]}  cxd4 {[%clk 0:02:59]} 4. Nxd4 {[%clk 0:03:01]}  Nf6 {[%clk 0:02:59]} 5. Nc3 {[%clk 0:03:02]}  g6 {[%clk 0:02:59]} 6. Bc4 {[%clk 0:03:01]}  Bg7 {[%clk 0:02:57]} 7. Be3 {[%clk 0:03:02]}  O-O {[%clk 0:02:57]} 8. f3 {[%clk 0:03:02]}  Nc6 {[%clk 0:02:50]} 9. Qd2 {[%clk 0:03:03]}  Bd7 {[%clk 0:02:47]} 10. h4 {[%clk 0:03:03]}  Qa5 {[%clk 0:02:41]} 11. Nb3 {[%clk 0:02:52]}  Qc7 {[%clk 0:02:28]} 12. h5 {[%clk 0:02:51]}  Ne5 {[%clk 0:02:26]} 13. Be2 {[%clk 0:02:43]}  Nxh5 {[%clk 0:02:22]} 14. Nd5 {[%clk 0:02:36]}  Qd8 {[%clk 0:02:19]} 15. Bh6 {[%clk 0:01:58]}  e6 {[%clk 0:01:38]} 16. Bxg7 {[%clk 0:01:57]}  Kxg7 {[%clk 0:01:35]} 17. Nc3 {[%clk 0:01:38]}  Qf6 {[%clk 0:01:29]} 18. Rxh5 {[%clk 0:01:24]}  gxh5 {[%clk 0:01:28]} 19. O-O-O {[%clk 0:01:23]}  Rad8 {[%clk 0:01:17]} 20. Rh1 {[%clk 0:01:22]}  Qg6 {[%clk 0:01:10]} 21. Qxd6 {[%clk 0:01:15]}  Qg5+ {[%clk 0:01:01]} 22. Kb1 {[%clk 0:01:08]}  Bb5 {[%clk 0:00:59]} 23. Qc5 {[%clk 0:00:56]}  Bxe2 {[%clk 0:00:48]} 24. Nxe2 {[%clk 0:00:56]}  Rc8 {[%clk 0:00:31]} 25. Qf2 {[%clk 0:00:51]}  Ng6 {[%clk 0:00:30]} 26. f4 {[%clk 0:00:42]}  Qg4 {[%clk 0:00:30]} 27. f5 {[%clk 0:00:33]}  Ne5 {[%clk 0:00:21]} 28. Rh4 {[%clk 0:00:25]}  Qg5 {[%clk 0:00:20]} 29. Nf4 {[%clk 0:00:24]}  Kh8 {[%clk 0:00:17]} 30. Rxh5 {[%clk 0:00:21]}  Qg4 {[%clk 0:00:16]} 31. Nc1 {[%clk 0:00:08]}  exf5 {[%clk 0:00:12]} 32. Rxf5 {[%clk 0:00:06]}  f6 {[%clk 0:00:12]} 33. Ne6 {[%clk 0:00:06]}  Qxe4 {[%clk 0:00:08]} 34. Nxf8 {[%clk 0:00:02]}  Rxf8 {[%clk 0:00:07]} 35. Rxf6 {[%clk 0:00:03]}  Rxf6 {[%clk 0:00:05]} 36. Qxf6+ {[%clk 0:00:04]}  Kg8 {[%clk 0:00:05]} 37. Qe6+ {[%clk 0:00:04]}  Kg7 {[%clk 0:00:05]} 38. Qe7+ {[%clk 0:00:03]}  Kg6 {[%clk 0:00:06]} 39. Qe6+ {[%clk 0:00:04]}  Kg5 {[%clk 0:00:06]} 40. a3 {[%clk 0:00:03]}  h5 {[%clk 0:00:06]} 41. Nd3 {[%clk 0:00:02]} 1-0


[Site "https://www.chess.com"]

[Event "Titled Tuesday Blitz April 4 Early 2023"]
[White "Shuvalova, Polina"]
[Black "Romero Pallares, Daniel"]
[WhiteFideId "24171760"]
[BlackFideId "32025637"]
[WhiteElo "2281"]
[BlackElo "2195"]
[Result "1-0"]
[Round "07"]
[TimeControl "180+2"]
[Date "2023.04.04"]
[WhiteClock "0:00:09"]
[BlackClock "0:00:01"]

1. e4 {[%clk 0:03:00]}  g6 {[%clk 0:02:56]} 2. d4 {[%clk 0:03:00]}  Bg7 {[%clk 0:02:57]} 3. c3 {[%clk 0:02:59]}  d6 {[%clk 0:02:56]} 4. Bd3 {[%clk 0:02:59]}  Nf6 {[%clk 0:02:56]} 5. Nf3 {[%clk 0:02:56]}  O-O {[%clk 0:02:56]} 6. O-O {[%clk 0:02:55]}  Nc6 {[%clk 0:02:57]} 7. Nbd2 {[%clk 0:02:43]}  e5 {[%clk 0:02:57]} 8. dxe5 {[%clk 0:02:36]}  Nxe5 {[%clk 0:02:47]} 9. Nxe5 {[%clk 0:02:33]}  dxe5 {[%clk 0:02:48]} 10. Qc2 {[%clk 0:02:29]}  Nh5 {[%clk 0:02:27]} 11. Re1 {[%clk 0:02:23]}  Bh6 {[%clk 0:02:15]} 12. Nc4 {[%clk 0:02:14]}  Bxc1 {[%clk 0:02:13]} 13. Raxc1 {[%clk 0:02:14]}  Qe7 {[%clk 0:02:14]} 14. Rcd1 {[%clk 0:02:10]}  Nf4 {[%clk 0:02:06]} 15. Bf1 {[%clk 0:02:10]}  Kg7 {[%clk 0:01:59]} 16. g3 {[%clk 0:02:02]}  Nh5 {[%clk 0:01:50]} 17. Qb3 {[%clk 0:01:43]}  b6 {[%clk 0:01:39]} 18. Qb5 {[%clk 0:01:39]}  Bg4 {[%clk 0:01:31]} 19. Be2 {[%clk 0:01:33]}  Bxe2 {[%clk 0:01:26]} 20. Rxe2 {[%clk 0:01:30]}  c5 {[%clk 0:00:59]} 21. Qd7 {[%clk 0:01:28]}  Qf6 {[%clk 0:00:50]} 22. Red2 {[%clk 0:01:24]}  Rad8 {[%clk 0:00:45]} 23. Qc7 {[%clk 0:01:09]}  Rxd2 {[%clk 0:00:45]} 24. Rxd2 {[%clk 0:01:08]}  Re8 {[%clk 0:00:39]} 25. Kg2 {[%clk 0:00:45]}  Qg5 {[%clk 0:00:26]} 26. h4 {[%clk 0:00:45]}  Qg4 {[%clk 0:00:24]} 27. Nd6 {[%clk 0:00:32]}  Nf4+ {[%clk 0:00:21]} 28. Kg1 {[%clk 0:00:32]}  Rf8 {[%clk 0:00:04]} 29. Qe7 {[%clk 0:00:32]}  Ne6 {[%clk 0:00:03]} 30. a4 {[%clk 0:00:18]}  Qf3 {[%clk 0:00:03]} 31. Ne8+ {[%clk 0:00:16]}  Kg8 {[%clk 0:00:03]} 32. Nf6+ {[%clk 0:00:16]}  Kg7 {[%clk 0:00:03]} 33. Nd7 {[%clk 0:00:16]}  Rg8 {[%clk 0:00:02]} 34. Nxe5 {[%clk 0:00:15]}  Qxe4 {[%clk 0:00:01]} 35. Qxf7+ {[%clk 0:00:16]}  Kh6 {[%clk 0:00:02]} 36. Qxg8 {[%clk 0:00:11]}  Qe1+ {[%clk 0:00:02]} 37. Kg2 {[%clk 0:00:11]}  Qxd2 {[%clk 0:00:02]} 38. Qxe6 {[%clk 0:00:11]}  c4 {[%clk 0:00:01]} 39. Ng4+ {[%clk 0:00:09]} 1-0


[Site "https://www.chess.com"]

[Event "Titled Tuesday Blitz April 4 Early 2023"]
[White "Nikologorskiy, Konstantin"]
[Black "Petrova, Irina"]
[WhiteFideId "24111708"]
[BlackFideId "14124122"]
[WhiteElo "2293"]
[BlackElo "2084"]
[Result "1-0"]
[Round "07"]
[TimeControl "180+2"]
[Date "2023.04.04"]
[WhiteClock "0:01:28"]
[BlackClock "0:01:14"]

1. d4 {[%clk 0:03:00]}  d6 {[%clk 0:03:00]} 2. c4 {[%clk 0:03:01]}  e5 {[%clk 0:03:00]} 3. Nf3 {[%clk 0:02:58]}  e4 {[%clk 0:03:00]} 4. Ng5 {[%clk 0:02:58]}  f5 {[%clk 0:03:00]} 5. Nc3 {[%clk 0:02:58]}  Be7 {[%clk 0:02:59]} 6. Nh3 {[%clk 0:02:57]}  Nf6 {[%clk 0:02:59]} 7. g3 {[%clk 0:02:58]}  O-O {[%clk 0:02:59]} 8. Bg2 {[%clk 0:02:58]}  c6 {[%clk 0:02:59]} 9. O-O {[%clk 0:02:59]}  Na6 {[%clk 0:02:58]} 10. Nf4 {[%clk 0:02:55]}  Nc7 {[%clk 0:02:58]} 11. h4 {[%clk 0:02:55]}  Bd7 {[%clk 0:02:42]} 12. d5 {[%clk 0:02:51]}  c5 {[%clk 0:02:41]} 13. b3 {[%clk 0:02:50]}  Be8 {[%clk 0:02:38]} 14. Bb2 {[%clk 0:02:50]}  Nd7 {[%clk 0:02:38]} 15. f3 {[%clk 0:02:44]}  exf3 {[%clk 0:02:36]} 16. exf3 {[%clk 0:02:38]}  Ne5 {[%clk 0:02:36]} 17. Ne6 {[%clk 0:02:33]}  Nxe6 {[%clk 0:02:36]} 18. dxe6 {[%clk 0:02:34]}  Bc6 {[%clk 0:02:35]} 19. f4 {[%clk 0:02:31]}  Bxg2 {[%clk 0:02:32]} 20. Kxg2 {[%clk 0:02:32]}  Nc6 {[%clk 0:02:31]} 21. Nd5 {[%clk 0:02:26]}  Rc8 {[%clk 0:02:25]} 22. Qf3 {[%clk 0:02:21]}  Re8 {[%clk 0:02:08]} 23. Rad1 {[%clk 0:02:17]}  Bf8 {[%clk 0:02:07]} 24. Rfe1 {[%clk 0:02:14]}  Qa5 {[%clk 0:01:56]} 25. a3 {[%clk 0:02:06]}  Ne7 {[%clk 0:01:51]} 26. Nc3 {[%clk 0:01:42]}  a6 {[%clk 0:01:39]} 27. Rxd6 {[%clk 0:01:37]}  Nc6 {[%clk 0:01:39]} 28. Rd7 {[%clk 0:01:35]}  Nd4 {[%clk 0:01:38]} 29. Qd5 {[%clk 0:01:34]}  Re7 {[%clk 0:01:31]} 30. Rxe7 {[%clk 0:01:32]}  Bxe7 {[%clk 0:01:32]} 31. Qxb7 {[%clk 0:01:32]}  Rd8 {[%clk 0:01:27]} 32. Qxe7 {[%clk 0:01:30]}  Nc6 {[%clk 0:01:20]} 33. Qf7+ {[%clk 0:01:29]}  Kh8 {[%clk 0:01:20]} 34. e7 {[%clk 0:01:29]}  Rd2+ {[%clk 0:01:14]} 35. Re2 {[%clk 0:01:28]} 1-0


[Site "https://www.chess.com"]

[Event "Titled Tuesday Blitz April 4 Early 2023"]
[White "Hnydiuk, Aleksander"]
[Black "M_Bozorov"]
[WhiteFideId "1109057"]
[WhiteElo "2374"]
[BlackElo "2452"]
[Result "0-1"]
[Round "07"]
[TimeControl "180+2"]
[Date "2023.04.04"]
[WhiteClock "0:00:02"]
[BlackClock "0:00:22"]

1. d4 {[%clk 0:02:59]}  Nf6 {[%clk 0:02:59]} 2. Nf3 {[%clk 0:02:58]}  g6 {[%clk 0:03:00]} 3. g3 {[%clk 0:02:57]}  Bg7 {[%clk 0:03:00]} 4. Bg2 {[%clk 0:02:57]}  O-O {[%clk 0:03:01]} 5. c4 {[%clk 0:02:57]}  c6 {[%clk 0:03:00]} 6. Nc3 {[%clk 0:02:57]}  d5 {[%clk 0:03:01]} 7. Qb3 {[%clk 0:02:57]}  Qb6 {[%clk 0:02:22]} 8. O-O {[%clk 0:02:56]}  Rd8 {[%clk 0:02:12]} 9. Bf4 {[%clk 0:02:38]}  dxc4 {[%clk 0:02:09]} 10. Qxc4 {[%clk 0:02:39]}  Be6 {[%clk 0:02:08]} 11. Qd3 {[%clk 0:02:33]}  Na6 {[%clk 0:02:00]} 12. Qc2 {[%clk 0:02:12]}  Nb4 {[%clk 0:01:31]} 13. Qc1 {[%clk 0:02:11]}  Bf5 {[%clk 0:01:16]} 14. a3 {[%clk 0:02:03]}  Nc2 {[%clk 0:01:16]} 15. Ra2 {[%clk 0:01:52]}  Nxd4 {[%clk 0:01:15]} 16. Nxd4 {[%clk 0:01:50]}  Qxd4 {[%clk 0:01:13]} 17. Ra1 {[%clk 0:00:56]}  Ne4 {[%clk 0:00:54]} 18. e3 {[%clk 0:00:29]}  Nxc3 {[%clk 0:00:52]} 19. bxc3 {[%clk 0:00:11]}  Qxc3 {[%clk 0:00:52]} 20. Qxc3 {[%clk 0:00:10]}  Bxc3 {[%clk 0:00:53]} 21. Ra2 {[%clk 0:00:10]}  f6 {[%clk 0:00:40]} 22. Rc1 {[%clk 0:00:08]}  Ba5 {[%clk 0:00:30]} 23. Rb2 {[%clk 0:00:06]}  g5 {[%clk 0:00:24]} 24. Rc5 {[%clk 0:00:02]}  Rd1+ {[%clk 0:00:21]} 25. Bf1 {[%clk 0:00:02]}  Bh3 {[%clk 0:00:22]} 0-1


[Site "https://www.chess.com"]